fUSD/lending_fUSD_20250117
["ID","MTS","AMOUNT","RATE_DAILY","PERIOD"]
[349241304,1737072434144,-155.61,0.00010137,2]
[349241305,1737072434167,-242.27847701,0.00023417,2]
[349241306,1737072434189,-187.36341013,0.00023517,2]
[349241307,1737072434211,-187.36341012,0.00024587,2]
[349241308,1737072434233,-861.91,0.00024687,2]
[349241309,1737072434256,-3299.673,0.00024687,7]
[349241310,1737072434278,-173.097,0.00024687,7]
[349241311,1737072434303,-614.58700463,0.00024687,2]
[349241312,1737072434327,-500.0,0.00025699,2]
[349241313,1737072434349,-250.0,0.00025956,2]
[349241314,1737072434374,-9742.91590912,0.00025997,2]
[349241315,1737072441133,-242.27847701,0.00023466,2]
[349241316,1737072441158,-1696.11692709,0.00025997,2]
[349241317,1737072446134,-242.27847701,0.00023514,2]
[349241318,1737072446157,-163.89743529,0.00025997,2]
[349241322,1737072562081,-200.0,0.00025867,2]
[349241323,1737072562102,-1000.0,0.00025912,2]
[349241324,1737072562124,-1672.56810463,0.00025997,2]
[349241332,1737072632095,-855.9186113,0.00023614,120]
[349241333,1737072632105,-280.82952148,0.00023614,120]
[349241334,1737072632115,-10624.50162387,0.00025997,2]
[349241335,1737072632124,-500.0,0.00026012,2]
[349241336,1737072632133,-251.04,0.00026012,30]
[349241337,1737072632143,-280.77,0.00026038,2]
[349241338,1737072632153,-594.86,0.00026133,2]
[349241339,1737072632162,-2000.0,0.00026181,120]
[349241340,1737072632172,-150.0,0.00026239,2]
[349241341,1737072632181,-20000.0,0.0002624,2]
[349241342,1737072632191,-20848.63,0.0002624,10]
[349241343,1737072632200,-4198.29,0.0002624,2]
[349241344,1737072632210,-1900.0,0.000263,9]
[349241345,1737072632219,-328.1,0.000263,2]
[349241346,1737072632229,-3900.0,0.000264,9]
[349241347,1737072632239,-250.0,0.00026487,2]
[349241348,1737072632249,-5900.0,0.000265,9]
[349241349,1737072632259,-998.7,0.00026523,2]
[349241350,1737072632269,-7900.0,0.000266,9]
[349241351,1737072632279,-161.49,0.00026605,2]
[349241352,1737072632289,-1049.07,0.00026685,120]
[349241353,1737072632298,-9900.0,0.000267,9]
[349241354,1737072632308,-1900.0,0.000268,9]
[349241355,1737072632317,-1900.0,0.000269,9]
[349241356,1737072632331,-861.91,0.00026951,2]
[349241357,1737072632341,-550.0,0.00027,2]
[349241358,1737072632350,-12097.30810055,0.000272,2]
[349241359,1737072632383,-345.3348,0.000272,2]
[349241360,1737072632396,-4899.29511722,0.000272,2]
[349241361,1737072632412,-1080.79234568,0.000272,2]
[349241362,1737072632424,-1028.79,0.000272,2]
[349241363,1737072632436,-18971.6,0.000272,2]
[349241364,1737072632449,-362.94287197,0.000272,2]
[349241365,1737072632460,-18129.21941414,0.000272,2]
[349241366,1737072632496,-11003.35397819,0.000272,2]
[349241367,1737072632508,-13572.46161191,0.000272,2]
[349241368,1737072632527,-442.47518453,0.000272,2]
[349241369,1737072632540,-2515.94290178,0.000272,2]
[349241370,1737072632556,-2608.76340571,0.000272,2]
[349241371,1737072632568,-4498.2629547,0.000272,2]
[349241372,1737072632582,-415.1771439,0.000272,2]
[349241395,1737072638089,-1507.9353124,0.000272,2]
[349241396,1737072638100,-385.87238127,0.000272,2]
[349241397,1737072638111,-1383.91575475,0.000272,2]
[349241398,1737072638122,-561.18935367,0.000272,2]
[349241399,1737072638333,-879.7275941,0.000272,2]
[349241400,1737072638343,-121.36669348,0.00027297,2]
[349241401,1737072638355,-212.32596769,0.00027297,2]
[349241403,1737072638365,-179.77865758,0.00027297,2]
[349241404,1737072638380,-609.7830247,0.00027297,2]
[349241405,1737072638391,-642.61977001,0.00027297,2]
[349241406,1737072638404,-6635.36928701,0.00027297,2]
[349241407,1737072638416,-4425.56263447,0.00027297,2]
[349241409,1737072638427,-569.42802416,0.00027297,2]
[349241412,1737072638437,-371.0,0.0002737,2]
[349241414,1737072638446,-500.0,0.00027373,2]
[349241416,1737072638457,-193.32868724,0.00027381,2]
[349241418,1737072638467,-303.45040264,0.00027396,10]
[349241420,1737072638477,-666.0,0.00027396,2]
[349241422,1737072638485,-500.0,0.00027396,2]
[349241424,1737072638495,-666.0,0.00027396,2]
[349241426,1737072638504,-500.0,0.00027396,2]
[349241427,1737072638513,-500.0,0.00027396,2]
[349241430,1737072638522,-395.40844161,0.00027396,2]
[349241432,1737072638532,-151.0,0.00027397,7]
[349241435,1737072638541,-151.0,0.00027397,7]
[349241436,1737072638550,-151.0,0.00027397,7]
[349241439,1737072638560,-266.559155,0.00027397,7]
[349241441,1737072638569,-151.0,0.00027397,7]
[349241464,1737072638812,-151.0,0.00027397,7]
[349241465,1737072638821,-151.0,0.00027397,7]
[349241466,1737072638831,-151.0,0.00027397,7]
[349241467,1737072638840,-469.8,0.00027397,7]
[349241468,1737072638850,-469.8,0.00027397,7]
[349241469,1737072638859,-469.8,0.00027397,7]
[349241470,1737072638869,-469.8,0.00027397,7]
[349241471,1737072638878,-469.8,0.00027397,7]
[349241472,1737072638887,-469.8,0.00027397,7]
[349241473,1737072638897,-469.8,0.00027397,7]
[349241474,1737072638906,-469.8,0.00027397,7]
[349241475,1737072638916,-317.742723,0.00027397,7]
[349241476,1737072638926,-317.742723,0.00027397,7]
[349241477,1737072638935,-317.742723,0.00027397,7]
[349241478,1737072638944,-317.742723,0.00027397,7]
[349241479,1737072638954,-317.742723,0.00027397,7]
[349241480,1737072638963,-317.742723,0.00027397,7]
[349241481,1737072638973,-317.742723,0.00027397,7]
[349241482,1737072638982,-317.742723,0.00027397,7]
[349241483,1737072638991,-317.742723,0.00027397,7]
[349241484,1737072639001,-317.742723,0.00027397,7]
[349241485,1737072639010,-151.0,0.00027397,7]
[349241486,1737072639019,-151.0,0.00027397,7]
[349241487,1737072639028,-151.0,0.00027397,7]
[349241488,1737072639037,-151.0,0.00027397,7]
[349241489,1737072639046,-151.0,0.00027397,7]
[349241490,1737072639055,-151.0,0.00027397,7]
[349241491,1737072639064,-266.942574,0.00027397,7]
[349241492,1737072639074,-266.942574,0.00027397,7]
[349241493,1737072639083,-266.942574,0.00027397,7]
[349241494,1737072639092,-266.942574,0.00027397,7]
[349241495,1737072639102,-266.942574,0.00027397,7]
[349241496,1737072639112,-266.942574,0.00027397,7]
[349241497,1737072639122,-266.942574,0.00027397,7]
[349241498,1737072639131,-266.942574,0.00027397,7]
[349241499,1737072639140,-266.942574,0.00027397,7]
[349241500,1737072639150,-266.942574,0.00027397,7]
[349241501,1737072639159,-266.942574,0.00027397,7]
[349241502,1737072639168,-266.942574,0.00027397,7]
[349241503,1737072639177,-266.942574,0.00027397,7]
[349241504,1737072639186,-266.942574,0.00027397,7]
[349241505,1737072639196,-316.017067,0.00027397,7]
[349241506,1737072639205,-316.017067,0.00027397,7]
[349241507,1737072639215,-316.017067,0.00027397,7]
[349241508,1737072639224,-316.017067,0.00027397,7]
[349241509,1737072639234,-316.017067,0.00027397,7]
[349241510,1737072639243,-316.017067,0.00027397,7]
[349241511,1737072639252,-316.017067,0.00027397,7]
[349241512,1737072639261,-316.017067,0.00027397,7]
[349241513,1737072639270,-316.017067,0.00027397,7]
[349241514,1737072639279,-316.017067,0.00027397,7]
[349241515,1737072639289,-316.017067,0.00027397,7]
[349241516,1737072639299,-316.017067,0.00027397,7]
[349241517,1737072639309,-316.017067,0.00027397,7]
[349241518,1737072639319,-316.017067,0.00027397,7]
[349241519,1737072639329,-151.0,0.00027397,7]
[349241520,1737072639338,-151.0,0.00027397,7]
[349241521,1737072639349,-151.0,0.00027397,7]
[349241522,1737072639359,-151.0,0.00027397,7]
[349241523,1737072639368,-151.0,0.00027397,7]
[349241524,1737072639383,-151.0,0.00027397,7]
[349241525,1737072639392,-214.431432,0.00027397,7]
[349241526,1737072639402,-500.0,0.00027397,3]
[349241527,1737072639411,-356.24718885,0.00027397,3]
[349241528,1737072639423,-377.79838103,0.00027397,3]
[349241529,1737072639432,-557.79424631,0.00027397,3]
[349241530,1737072639441,-151.0,0.00027397,7]
[349241531,1737072639453,-151.0,0.00027397,7]
[349241532,1737072639463,-151.0,0.00027397,7]
[349241533,1737072639472,-151.0,0.00027397,7]
[349241534,1737072639482,-151.0,0.00027397,7]
[349241535,1737072639491,-500.0,0.00027397,3]
[349241536,1737072639500,-151.0,0.00027397,7]
[349241537,1737072639510,-500.0,0.00027397,3]
[349241538,1737072639519,-500.0,0.00027397,3]
[349241539,1737072639529,-151.0,0.00027397,7]
[349241540,1737072639539,-500.0,0.00027397,3]
[349241541,1737072639549,-151.0,0.00027397,7]
[349241542,1737072639559,-151.0,0.00027397,7]
[349241543,1737072639568,-151.0,0.00027397,7]
[349241544,1737072639578,-151.0,0.00027397,7]
[349241545,1737072639588,-151.0,0.00027397,7]
[349241546,1737072639598,-197.0,0.00027397,7]
[349241547,1737072639607,-500.0,0.00027397,3]
[349241548,1737072639617,-500.0,0.00027397,3]
[349241549,1737072639626,-228.41385145,0.00027397,3]
[349241550,1737072639635,-502.6940688,0.00027397,3]
[349241551,1737072639645,-237.43690808,0.00027397,3]
[349241552,1737072639655,-500.0,0.00027397,3]
[349241553,1737072639664,-506.92653137,0.00027397,3]
[349241554,1737072639674,-534.49274585,0.00027397,3]
[349241555,1737072639683,-151.0,0.00027397,7]
[349241556,1737072639693,-151.0,0.00027397,7]
[349241557,1737072639703,-151.0,0.00027397,7]
[349241558,1737072639712,-151.0,0.00027397,7]
[349241559,1737072639723,-500.0,0.00027397,3]
[349241560,1737072639733,-151.0,0.00027397,7]
[349241561,1737072639742,-500.0,0.00027397,3]
[349241562,1737072639752,-151.0,0.00027397,7]
[349241563,1737072639762,-151.0,0.00027397,7]
[349241564,1737072639773,-151.0,0.00027397,7]
[349241565,1737072639783,-151.0,0.00027397,7]
[349241566,1737072639793,-151.0,0.00027397,7]
[349241567,1737072639802,-532.98598129,0.00027397,3]
[349241568,1737072639811,-151.0,0.00027397,7]
[349241569,1737072639821,-151.0,0.00027397,7]
[349241570,1737072639834,-195.578189,0.00027397,7]
[349241571,1737072639843,-500.0,0.00027397,3]
[349241572,1737072639853,-500.0,0.00027397,3]
[349241573,1737072639862,-500.0,0.00027397,3]
[349241574,1737072639872,-500.0,0.00027397,3]
[349241575,1737072639882,-507.79574002,0.00027397,3]
[349241577,1737072639892,-500.0,0.00027397,3]
[349241578,1737072639901,-219.18715834,0.00027397,3]
[349241579,1737072639911,-500.6201531,0.00027397,3]
[349241580,1737072639920,-500.0,0.00027397,3]
[349241581,1737072639930,-186.83779662,0.00027397,3]
[349241582,1737072639939,-396.57995985,0.00027397,3]
[349241583,1737072639948,-151.0,0.00027397,7]
[349241584,1737072639958,-151.0,0.00027397,7]
[349241585,1737072639967,-151.0,0.00027397,7]
[349241586,1737072639976,-151.0,0.00027397,7]
[349241587,1737072639985,-151.0,0.00027397,7]
[349241589,1737072639995,-151.0,0.00027397,7]
[349241590,1737072640004,-151.0,0.00027397,7]
[349241591,1737072640013,-151.0,0.00027397,7]
[349241592,1737072640022,-151.0,0.00027397,7]
[349241593,1737072640032,-151.0,0.00027397,7]
[349241594,1737072640042,-151.0,0.00027397,7]
[349241596,1737072640051,-190.02541,0.00027397,7]
[349241598,1737072640060,-150.0,0.00027397,30]
[349241599,1737072640070,-40.57566835,0.00027397,3]
[349241600,1737072640163,-459.42433165,0.00027397,3]
[349241601,1737072640172,-202.71895437,0.00027397,3]
[349241602,1737072640182,-275.55308672,0.00027397,3]
[349241603,1737072640191,-500.0,0.00027397,3]
[349241604,1737072640200,-422.34714852,0.00027397,3]
[349241605,1737072640783,-77.65285148,0.00027397,3]
[349241606,1737072640793,-413.63533742,0.00027397,3]
[349241607,1737072640824,-86.36466258,0.00027397,3]
[349241608,1737072640835,-344.361479,0.00027397,3]
[349241609,1737072640847,-155.638521,0.00027397,3]
[349241611,1737072640857,-500.70011739,0.00027397,3]
[349241613,1737072640867,-500.0,0.00027397,3]
[349241614,1737072640876,-503.74049584,0.00027397,3]
[349241616,1737072640885,-151.0,0.00027397,7]
[349241617,1737072640895,-151.0,0.00027397,7]
[349241620,1737072640912,-151.0,0.00027397,7]
[349241622,1737072640924,-11.86247294,0.00027397,7]
[349241623,1737072640949,-139.13752706,0.00027397,7]
[349241624,1737072640959,-151.0,0.00027397,7]
[349241625,1737072640968,-623.577183,0.00027397,7]
[349241626,1737072640978,-623.577183,0.00027397,7]
[349241627,1737072640988,-623.577183,0.00027397,7]
[349241628,1737072640997,-623.577183,0.00027397,7]
[349241629,1737072641007,-623.577183,0.00027397,7]
[349241630,1737072641017,-623.577183,0.00027397,7]
[349241631,1737072641026,-623.577183,0.00027397,7]
[349241632,1737072641036,-623.577183,0.00027397,7]
[349241633,1737072641046,-151.0,0.00027397,7]
[349241634,1737072641055,-623.577183,0.00027397,7]
[349241635,1737072641065,-151.0,0.00027397,7]
[349241636,1737072641074,-623.577183,0.00027397,7]
[349241637,1737072641086,-151.0,0.00027397,7]
[349241638,1737072641095,-623.577183,0.00027397,7]
[349241639,1737072641104,-151.0,0.00027397,7]
[349241640,1737072641114,-623.577183,0.00027397,7]
[349241641,1737072641125,-151.0,0.00027397,7]
[349241642,1737072641137,-623.577183,0.00027397,7]
[349241643,1737072641146,-151.0,0.00027397,7]
[349241644,1737072641156,-623.577183,0.00027397,7]
[349241645,1737072641166,-151.0,0.00027397,7]
[349241646,1737072641175,-623.577183,0.00027397,7]
[349241647,1737072641185,-151.0,0.00027397,7]
[349241648,1737072641194,-623.577183,0.00027397,7]
[349241649,1737072641204,-170.586644,0.00027397,7]
[349241650,1737072641214,-500.50701047,0.00027397,2]
[349241651,1737072641223,-623.577183,0.00027397,7]
[349241652,1737072641233,-623.577183,0.00027397,7]
[349241653,1737072641243,-623.577183,0.00027397,7]
[349241654,1737072641253,-623.577185,0.00027397,7]
[349241655,1737072641263,-501.99067918,0.00027397,3]
[349241656,1737072641272,-500.90117774,0.00027397,3]
[349241657,1737072641282,-172.30564277,0.00027397,3]
[349241658,1737072641292,-501.72815042,0.00027397,3]
[349241659,1737072641301,-500.0,0.00027397,2]
[349241660,1737072641313,-500.0,0.00027397,3]
[349241661,1737072641323,-398.66470536,0.00027397,3]
[349241662,1737072641333,-500.0,0.00027397,3]
[349241663,1737072641343,-500.0,0.00027397,3]
[349241664,1737072641353,-151.0,0.00027397,7]
[349241665,1737072641363,-151.0,0.00027397,7]
[349241666,1737072641376,-500.0,0.00027397,3]
[349241667,1737072641386,-169.584944,0.00027397,7]
[349241668,1737072641397,-500.53963215,0.00027397,3]
[349241669,1737072641408,-500.0,0.00027397,3]
[349241670,1737072641420,-500.0,0.00027397,3]
[349241671,1737072641431,-500.0,0.00027397,3]
[349241672,1737072641441,-500.0,0.00027397,3]
[349241673,1737072641454,-368.4030658,0.00027397,3]
[349241674,1737072641464,-500.0,0.00027397,3]
[349241675,1737072641473,-500.6041815,0.00027397,3]
[349241676,1737072641483,-500.0,0.00027397,3]
[349241677,1737072641492,-500.0,0.00027397,3]
[349241678,1737072641503,-500.0,0.00027397,3]
[349241679,1737072641514,-503.95624794,0.00027397,3]
[349241680,1737072641524,-500.0,0.00027397,3]
[349241681,1737072641533,-500.0,0.00027397,3]
[349241682,1737072641543,-500.0,0.00027397,3]
[349241683,1737072641554,-503.52027162,0.00027397,3]
[349241684,1737072641563,-296.356346,0.00027397,7]
[349241685,1737072641573,-500.56221145,0.00027397,3]
[349241686,1737072641585,-151.0,0.00027397,7]
[349241687,1737072641596,-151.0,0.00027397,7]
[349241688,1737072641605,-151.0,0.00027397,7]
[349241689,1737072641615,-151.0,0.00027397,7]
[349241690,1737072641625,-151.0,0.00027397,7]
[349241691,1737072641635,-217.803089,0.00027397,7]
[349241692,1737072641644,-500.0,0.00027397,3]
[349241693,1737072641653,-500.0,0.00027397,3]
[349241694,1737072641663,-500.0,0.00027397,3]
[349241695,1737072641672,-500.0,0.00027397,3]
[349241696,1737072641683,-500.0,0.00027397,3]
[349241697,1737072641692,-500.0,0.00027397,3]
[349241698,1737072641702,-503.00669239,0.00027397,3]
[349241699,1737072641711,-500.0,0.00027397,3]
[349241700,1737072641721,-500.0,0.00027397,3]
[349241701,1737072641730,-500.0,0.00027397,3]
[349241702,1737072641739,-500.0,0.00027397,3]
[349241703,1737072641749,-509.94680363,0.00027397,3]
[349241704,1737072641759,-500.0,0.00027397,3]
[349241705,1737072641769,-501.64243051,0.00027397,3]
[349241706,1737072641779,-915.218026,0.00027397,7]
[349241707,1737072641788,-915.218026,0.00027397,7]
[349241708,1737072641798,-915.218026,0.00027397,7]
[349241709,1737072641807,-915.218026,0.00027397,7]
[349241710,1737072641817,-915.218026,0.00027397,7]
[349241711,1737072641829,-915.218026,0.00027397,7]
[349241712,1737072641838,-915.218026,0.00027397,7]
[349241713,1737072641848,-915.218026,0.00027397,7]
[349241714,1737072641858,-915.218026,0.00027397,7]
[349241715,1737072641868,-915.218026,0.00027397,7]
[349241716,1737072641878,-300.0,0.00027397,3]
[349241717,1737072641887,-915.218026,0.00027397,7]
[349241718,1737072641897,-300.0,0.00027397,3]
[349241719,1737072641906,-915.218026,0.00027397,7]
[349241720,1737072641916,-300.0,0.00027397,3]
[349241721,1737072641926,-269.03749367,0.00027397,3]
[349241722,1737072641937,-915.218026,0.00027397,7]
[349241723,1737072641947,-915.218026,0.00027397,7]
[349241724,1737072641957,-915.218026,0.00027397,7]
[349241725,1737072641967,-915.218026,0.00027397,7]
[349241726,1737072641976,-915.218026,0.00027397,7]
[349241727,1737072641985,-915.218026,0.00027397,7]
[349241728,1737072641995,-915.218026,0.00027397,7]
[349241729,1737072642004,-500.0,0.00027397,3]
[349241730,1737072642014,-915.218028,0.00027397,7]
[349241731,1737072642024,-502.14893857,0.00027397,3]
[349241732,1737072642034,-500.0,0.00027397,3]
[349241733,1737072642045,-500.0,0.00027397,3]
[349241734,1737072642055,-500.0,0.00027397,3]
[349241735,1737072642065,-500.0,0.00027397,3]
[349241736,1737072642074,-302.41714979,0.00027397,3]
[349241737,1737072642085,-502.75490522,0.00027397,3]
[349241738,1737072642094,-500.0,0.00027397,3]
[349241739,1737072642103,-506.55101895,0.00027397,3]
[349241740,1737072642113,-500.0,0.00027397,3]
[349241741,1737072642123,-500.0,0.00027397,3]
[349241742,1737072642134,-500.0,0.00027397,3]
[349241743,1737072642145,-173.08755,0.00027397,7]
[349241744,1737072642155,-173.08755,0.00027397,7]
[349241745,1737072642165,-173.08755,0.00027397,7]
[349241746,1737072642174,-76.19120658,0.00027397,7]
[349241756,1737072642941,-96.89634342,0.00027397,7]
[349241758,1737072642950,-173.08755,0.00027397,7]
[349241760,1737072642959,-500.0,0.00027397,3]
[349241761,1737072642968,-500.0,0.00027397,3]
[349241763,1737072642978,-385.60610658,0.00027397,3]
[349241765,1737072642992,-114.39389342,0.00027397,3]
[349241766,1737072643001,-562.0327071,0.00027397,3]
[349241767,1737072643010,-173.08755,0.00027397,7]
[349241768,1737072643020,-173.08755,0.00027397,7]
[349241769,1737072643029,-173.08755,0.00027397,7]
[349241770,1737072643039,-173.08755,0.00027397,7]
[349241771,1737072643048,-173.08755,0.00027397,7]
[349241774,1737072643058,-173.08755,0.00027397,7]
[349241777,1737072643067,-500.0,0.00027397,3]
[349241780,1737072643078,-173.08755,0.00027397,7]
[349241783,1737072643088,-158.64549848,0.00027397,3]
[349241788,1737072643106,-341.35450152,0.00027397,3]
[349241791,1737072643115,-500.0,0.00027397,3]
[349241794,1737072643125,-173.08755,0.00027397,7]
[349241797,1737072643134,-505.71365278,0.00027397,3]
[349241801,1737072643144,-173.08755,0.00027397,7]
[349241803,1737072643154,-173.08755,0.00027397,7]
[349241804,1737072643163,-173.08755,0.00027397,7]
[349241805,1737072643173,-173.08755,0.00027397,7]
[349241806,1737072643182,-173.08755,0.00027397,7]
[349241807,1737072643191,-118.11769784,0.00027397,7]
[349241808,1737072643208,-54.96985216,0.00027397,7]
[349241809,1737072643218,-173.08754592,0.00027397,7]
[349241810,1737072643229,-89.4108359,0.00027397,3]
[349241811,1737072643262,-410.5891641,0.00027397,3]
[349241812,1737072643271,-451.80883278,0.00027397,3]
[349241813,1737072643280,-500.0,0.00027397,3]
[349241814,1737072643289,-500.0,0.00027397,3]
[349241815,1737072643299,-531.11532315,0.00027397,3]
[349241816,1737072643308,-500.68071562,0.00027397,3]
[349241817,1737072643317,-500.0,0.00027397,3]
[349241818,1737072643326,-500.0,0.00027397,3]
[349241819,1737072643340,-500.0,0.00027397,3]
[349241820,1737072643349,-357.88569367,0.00027397,3]
[349241822,1737072643982,-205.12844976,0.00027297,2]
[349241823,1737072643992,-142.11430633,0.00027397,3]
[349241824,1737072644001,-500.0,0.00027397,3]
[349241825,1737072644010,-500.0,0.00027397,3]
[349241826,1737072644019,-488.92353391,0.00027397,3]
[349241827,1737072644032,-11.07646609,0.00027397,3]
[349241828,1737072644041,-160.2601978,0.00027397,3]
[349241829,1737072644050,-338.42551964,0.00027397,3]
[349241830,1737072644059,-169.54281562,0.00027397,3]
[349241831,1737072644082,-331.45500653,0.00027397,3]
[349241832,1737072644091,-644.21820799,0.00027397,3]
[349241833,1737072644101,-502.00450485,0.00027397,3]
[349241834,1737072644111,-157.373781,0.00027397,7]
[349241835,1737072644120,-157.373781,0.00027397,7]
[349241836,1737072644129,-55.47909578,0.00027397,7]
[349241837,1737072644144,-101.89468522,0.00027397,7]
[349241838,1737072644154,-157.373781,0.00027397,7]
[349241839,1737072644163,-213.437165,0.00027397,7]
[349241840,1737072644173,-800.93,0.00027397,3]
[349241841,1737072644183,-157.373781,0.00027397,7]
[349241842,1737072644193,-800.93,0.00027397,3]
[349241843,1737072644203,-213.437165,0.00027397,7]
[349241844,1737072644212,-800.93,0.00027397,3]
[349241845,1737072644222,-157.373781,0.00027397,7]
[349241846,1737072644231,-213.437165,0.00027397,7]
[349241847,1737072644240,-800.93,0.00027397,3]
[349241848,1737072644250,-157.373781,0.00027397,7]
[349241849,1737072644260,-686.80897069,0.00027397,3]
[349241850,1737072644278,-114.12102931,0.00027397,3]
[349241851,1737072644287,-213.437165,0.00027397,7]
[349241852,1737072644297,-157.373781,0.00027397,7]
[349241853,1737072644306,-800.93,0.00027397,3]
[349241854,1737072644315,-76.00608487,0.00027397,7]
[349241855,1737072644335,-81.36769613,0.00027397,7]
[349241856,1737072644344,-800.93,0.00027397,3]
[349241857,1737072644353,-213.437165,0.00027397,7]
[349241858,1737072644363,-800.93,0.00027397,3]
[349241859,1737072644372,-157.373781,0.00027397,7]
[349241860,1737072644386,-213.437165,0.00027397,7]
[349241861,1737072644396,-157.373781,0.00027397,7]
[349241862,1737072644406,-157.373781,0.00027397,7]
[349241863,1737072644415,-213.437165,0.00027397,7]
[349241864,1737072644425,-157.373781,0.00027397,7]
[349241865,1737072644435,-213.437165,0.00027397,7]
[349241866,1737072644444,-157.373781,0.00027397,7]
[349241867,1737072644454,-213.437165,0.00027397,7]
[349241868,1737072644463,-500.0,0.00027397,3]
[349241869,1737072644474,-213.437165,0.00027397,7]
[349241870,1737072644483,-157.373781,0.00027397,7]
[349241871,1737072644493,-500.0,0.00027397,3]
[349241872,1737072644502,-213.437165,0.00027397,7]
[349241873,1737072644511,-501.13189946,0.00027397,3]
[349241874,1737072644520,-157.373781,0.00027397,7]
[349241875,1737072644530,-157.373781,0.00027397,7]
[349241876,1737072644539,-213.437165,0.00027397,7]
[349241877,1737072644548,-213.437165,0.00027397,7]
[349241878,1737072644557,-213.437165,0.00027397,7]
[349241879,1737072644567,-157.373781,0.00027397,7]
[349241880,1737072644576,-213.437165,0.00027397,7]
[349241881,1737072644586,-157.373781,0.00027397,7]
[349241882,1737072644595,-213.437165,0.00027397,7]
[349241883,1737072644604,-213.437165,0.00027397,7]
[349241884,1737072644614,-157.373781,0.00027397,7]
[349241885,1737072644623,-213.437165,0.00027397,7]
[349241886,1737072644632,-213.437165,0.00027397,7]
[349241887,1737072644641,-213.437162,0.00027397,7]
[349241888,1737072644650,-500.0,0.00027397,3]
[349241889,1737072644660,-500.0,0.00027397,3]
[349241890,1737072644669,-500.0,0.00027397,3]
[349241891,1737072644678,-500.0,0.00027397,3]
[349241892,1737072644687,-500.0,0.00027397,3]
[349241893,1737072644696,-503.33293654,0.00027397,3]
[349241894,1737072644705,-503.46831728,0.00027397,3]
[349241895,1737072644714,-500.0,0.00027397,3]
[349241896,1737072644723,-500.0,0.00027397,3]
[349241897,1737072644733,-500.0,0.00027397,3]
[349241898,1737072644742,-500.0,0.00027397,3]
[349241899,1737072644752,-503.71652556,0.00027397,3]
[349241900,1737072644761,-500.0,0.00027397,3]
[349241901,1737072644770,-500.0,0.00027397,3]
[349241902,1737072644780,-500.0,0.00027397,3]
[349241903,1737072644789,-500.0,0.00027397,3]
[349241904,1737072644801,-500.0,0.00027397,3]
[349241905,1737072644810,-500.0,0.00027397,3]
[349241906,1737072644820,-500.0,0.00027397,3]
[349241907,1737072644830,-500.0,0.00027397,3]
[349241908,1737072644839,-500.0,0.00027397,3]
[349241909,1737072644849,-500.0,0.00027397,3]
[349241910,1737072644858,-500.0,0.00027397,3]
[349241911,1737072644867,-500.0,0.00027397,3]
[349241912,1737072644877,-502.82769921,0.00027397,3]
[349241913,1737072644886,-1745.769008,0.00027397,7]
[349241914,1737072644898,-500.0,0.00027397,3]
[349241915,1737072644908,-1745.769008,0.00027397,7]
[349241916,1737072644917,-500.0,0.00027397,3]
[349241917,1737072644926,-501.563395,0.00027397,3]
[349241918,1737072644935,-1745.769008,0.00027397,7]
[349241919,1737072644944,-500.0,0.00027397,3]
[349241920,1737072644953,-500.0,0.00027397,3]
[349241921,1737072644963,-1745.769008,0.00027397,7]
[349241922,1737072644972,-500.0,0.00027397,3]